bitfinex-derivatives/quotes_BTCF0:USTF0_20241213
["timestamp","ask_amount","ask_price","bid_price","bid_amount"]
[1734121423402,0.0005,101670.0,101660.0,2.24012063]
[1734121424202,0.0005,101670.0,101660.0,2.14714827]
[1734121424393,0.14214036,101680.0,101670.0,0.049171]
[1734121424597,0.23424036,101680.0,101670.0,0.409971]
[1734121424798,0.23424036,101680.0,101670.0,0.909971]
[1734121425201,0.23424036,101680.0,101670.0,0.409971]
[1734121425506,0.23474036,101680.0,101670.0,0.909971]
[1734121425901,0.141768,101680.0,101670.0,0.409971]
[1734121426302,0.141268,101680.0,101670.0,0.909971]
[1734121426504,0.141268,101680.0,101670.0,0.409971]
[1734121426905,0.141268,101680.0,101670.0,1.270771]
[1734121427213,0.0921,101680.0,101670.0,0.770771]
[1734121427414,0.0926,101680.0,101670.0,0.770771]
[1734121427705,0.0926,101680.0,101670.0,1.270771]
[1734121428106,0.0926,101680.0,101670.0,1.36374336]
[1734121428314,0.0921,101680.0,101670.0,1.36374336]
[1734121429103,0.18019773,101680.0,101670.0,1.36374336]
[1734121429409,0.18069773,101680.0,101670.0,1.36374336]
[1734121430110,0.18069773,101680.0,101670.0,1.270771]
[1734121430308,0.22986373,101680.0,101670.0,1.270771]
[1734121430508,0.18069773,101680.0,101670.0,1.270771]
[1734121432413,0.18019773,101680.0,101670.0,1.270771]
[1734121434912,0.22936373,101680.0,101670.0,1.270771]
[1734121441110,0.22936373,101680.0,101670.0,0.7216]
[1734121441111,0.38172678,101680.0,101670.0,0.7216]
[1734121441312,0.41626093,101680.0,101670.0,0.409971]
[1734121441518,0.46542793,101680.0,101670.0,0.909971]
[1734121441714,0.38172778,101680.0,101670.0,0.409971]
[1734121441905,0.38172778,101680.0,101670.0,0.909971]
[1734121442305,0.38172778,101680.0,101670.0,0.409971]
[1734121443320,0.38172778,101680.0,101670.0,0.909971]
[1734121443713,0.38172778,101680.0,101670.0,0.8608]
[1734121446616,0.38172778,101680.0,101670.0,0.909971]
[1734121447316,0.41063922,101680.0,101670.0,0.909971]
[1734121448725,0.28875542,101680.0,101670.0,0.8608]
[1734121448911,0.28875542,101680.0,101670.0,0.9709129]
[1734121449114,0.22968112,101680.0,101670.0,2.462167]
[1734121449514,0.29062302,101680.0,101670.0,2.4012251]
[1734121449912,0.29062302,101680.0,101670.0,2.462167]
[1734121452219,0.22968112,101680.0,101670.0,2.81331784]
[1734121453012,0.29062302,101680.0,101670.0,2.81331784]
[1734121453218,0.29062302,101680.0,101670.0,2.52206374]
[1734121454225,0.29062302,101680.0,101670.0,2.1709129]
[1734121454724,0.29062302,101680.0,101670.0,2.1787275]
[1734121455219,0.29062302,101680.0,101670.0,2.52987834]
[1734121455421,0.29062302,101680.0,101670.0,2.1787275]
[1734121456218,0.29062302,101680.0,101670.0,2.52987834]
[1734121458020,0.22968112,101680.0,101670.0,2.52987834]
[1734121459224,0.29062302,101680.0,101670.0,2.52987834]
[1734121460939,0.22968112,101680.0,101670.0,2.52987834]
[1734121461432,0.29062302,101680.0,101670.0,2.52987834]
[1734121461627,0.29062302,101680.0,101670.0,2.1787275]
[1734121461934,0.22968112,101680.0,101670.0,2.1787275]
[1734121462121,0.29062302,101680.0,101670.0,2.1709129]
[1734121462520,0.29062302,101680.0,101670.0,2.109971]
[1734121463131,0.40851295,101680.0,101670.0,2.109971]
[1734121464034,0.32009883,101680.0,101670.0,2.109971]
[1734121464233,0.25915693,101680.0,101670.0,2.1709129]
[1734121464431,0.38104073,101680.0,101670.0,2.0608]
[1734121464731,0.52852915,101680.0,101670.0,1.15323457]
[1734121464937,0.46758725,101680.0,101670.0,1.15323457]
[1734121465232,0.46758725,101680.0,101670.0,0.9217419]
[1734121465734,0.46758725,101680.0,101670.0,0.8608]
[1734121466045,0.52852915,101680.0,101670.0,0.8608]
[1734121469036,0.52852915,101680.0,101670.0,1.15309974]
[1734121469439,0.52852915,101680.0,101670.0,0.8608]
[1734121469642,0.52852915,101680.0,101670.0,1.15309974]
[1734121470032,0.40664535,101680.0,101670.0,1.15309974]
[1734121470334,0.46758725,101680.0,101670.0,1.15309974]
[1734121470641,0.46758725,101680.0,101670.0,0.8608]
[1734121470825,0.52852915,101680.0,101670.0,0.8608]
[1734121471231,0.52852915,101680.0,101670.0,1.15309974]
[1734121471439,0.52852915,101680.0,101670.0,0.3608]
[1734121471635,0.41063922,101680.0,101670.0,0.3608]
[1734121471940,0.41063922,101680.0,101670.0,0.8608]
[1734121472147,0.34969732,101680.0,101670.0,0.3608]
[1734121472442,0.34969732,101680.0,101670.0,0.8608]
[1734121472629,0.52853239,101680.0,101670.0,0.8608]
[1734121472832,0.41063922,101680.0,101670.0,0.3608]
[1734121473232,0.049171,101670.0,101660.0,2.35359337]
[1734121473435,0.43643249,101670.0,101660.0,2.35309337]
[1734121473637,0.43643249,101670.0,101660.0,0.8608]
[1734121473934,0.49521573,101670.0,101660.0,0.3608]
[1734121474141,0.049176,101660.0,101650.0,0.8608]
[1734121474335,0.049176,101660.0,101650.0,0.3608]
[1734121474336,0.46667579,101660.0,101650.0,0.3608]
[1734121475249,0.31938913,101660.0,101650.0,0.3608]
[1734121475943,0.049181,101650.0,101640.0,0.909985]
[1734121476131,0.31623909,101650.0,101640.0,0.549185]
[1734121477230,0.13743108,101660.0,101650.0,0.049181]
[1734121477430,0.13743108,101660.0,101650.0,0.5355229]
[1734121477637,0.31614866,101670.0,101650.0,1.0355229]
[1734121477839,0.19836798,101670.0,101660.0,0.409976]
[1734121478231,0.19836798,101670.0,101660.0,0.8608]
[1734121478437,0.19836798,101670.0,101660.0,0.8613]
[1734121478644,0.19836798,101670.0,101660.0,0.3613]
[1734121478843,0.19836798,101670.0,101660.0,0.8613]
[1734121479344,0.2382066,101670.0,101660.0,0.8613]
[1734121481240,0.71678728,101670.0,101660.0,1.7005]
[1734121481739,0.35598728,101670.0,101660.0,2.0613]
[1734121482244,0.35598728,101670.0,101660.0,1.7005]
[1734121482444,0.35598728,101670.0,101660.0,1.7]
[1734121483852,0.71678728,101670.0,101660.0,1.7]
[1734121484749,0.71678728,101670.0,101660.0,0.5]
[1734121485047,0.71678728,101670.0,101650.0,2.18228467]
[1734121485250,0.15116911,101660.0,101650.0,2.18228467]
[1734121485552,0.13743108,101660.0,101650.0,1.675078]
[1734121485939,0.13743108,101660.0,101650.0,2.175078]
[1734121486555,0.13743108,101660.0,101650.0,2.174578]
[1734121487447,0.13743108,101660.0,101650.0,2.175078]
[1734121488448,0.13743108,101660.0,101650.0,2.174578]
[1734121488955,0.049176,101660.0,101650.0,2.174578]
[1734121489457,0.049176,101660.0,101650.0,2.175078]
[1734121490052,0.13743108,101660.0,101650.0,2.175078]
[1734121491453,0.23031457,101660.0,101650.0,2.0939]
[1734121491850,0.26041457,101660.0,101650.0,2.143081]
[1734121493258,0.37819525,101660.0,101650.0,2.143081]
[1734121493856,0.37819525,101660.0,101650.0,2.0939]
[1734121494056,0.37819525,101660.0,101650.0,0.8613]
[1734121494257,0.44302945,101660.0,101650.0,0.3613]
[1734121494555,0.71554017,101660.0,101650.0,0.0005]
[1734121494760,0.50202683,101660.0,101650.0,0.0005]
[1734121495656,0.86282683,101660.0,101650.0,0.0005]
[1734121495858,0.74504615,101660.0,101650.0,0.0005]
[1734121498563,0.049185,101640.0,101630.0,2.171688]
[1734121499163,0.11016458,101640.0,101630.0,2.23266758]
[1734121500361,0.11016458,101640.0,101630.0,2.171688]
[1734121502457,0.17114416,101640.0,101630.0,2.171688]
[1734121502655,0.17114416,101640.0,101630.0,2.1225]
[1734121502854,0.17114416,101640.0,101630.0,2.0925]
[1734121502855,0.20214416,101640.0,101630.0,2.0925]
[1734121503270,0.29041987,101640.0,101630.0,2.0925]
[1734121504366,0.14116458,101640.0,101630.0,2.14169]
[1734121504570,0.14116458,101640.0,101630.0,2.14219]
[1734121504956,0.14116458,101640.0,101630.0,0.94219]
[1734121505770,0.14894292,101640.0,101630.0,0.94219]
[1734121509358,0.23722236,101640.0,101630.0,0.94219]
[1734121512372,0.29820194,101640.0,101630.0,0.8613]
[1734121512669,0.50948745,101640.0,101630.0,0.3613]
[1734121512858,0.45120801,101640.0,101630.0,0.3613]
[1734121513061,0.59834042,101640.0,101630.0,0.3613]
[1734121513269,0.53736084,101640.0,101630.0,0.3613]
[1734121513670,0.89816084,101640.0,101630.0,0.0005]
[1734121513868,0.78045491,101640.0,101630.0,0.0005]
[1734121514065,0.84143449,101640.0,101630.0,0.0005]
[1734121514972,1.01799338,101640.0,101630.0,0.0005]
[1734121515373,0.84143449,101640.0,101630.0,0.0005]
[1734121516771,0.04919,101630.0,101620.0,0.3608]
[1734121516977,0.37710242,101630.0,101620.0,0.3608]
[1734121517561,0.25514326,101630.0,101620.0,0.409995]
[1734121517763,0.2939186,101640.0,101620.0,1.03195416]
[1734121517963,0.2939186,101640.0,101630.0,0.47096958]
[1734121517964,0.14523102,101640.0,101630.0,0.47096958]
[1734121518165,0.05696534,101640.0,101630.0,0.47096958]
[1734121518369,0.05696534,101640.0,101630.0,0.90999]
[1734121518370,0.11794492,101640.0,101630.0,0.90999]
[1734121518581,0.11794492,101640.0,101630.0,0.40999]
[1734121518967,0.1789245,101640.0,101630.0,0.90999]
[1734121520075,0.1789245,101640.0,101630.0,2.10999]
[1734121520375,0.26719018,101640.0,101630.0,2.10999]
[1734121521278,0.23816219,101640.0,101630.0,2.10999]
[1734121525772,0.14523102,101640.0,101630.0,2.10999]
[1734121525975,0.09604402,101640.0,101630.0,2.10999]
[1734121526177,0.20645326,101650.0,101640.0,0.049185]
[1734121526367,0.08876568,101650.0,101640.0,0.88527555]
[1734121526675,0.28773026,101660.0,101650.0,0.049181]
[1734121526870,0.28773026,101660.0,101650.0,0.409981]
[1734121527172,0.28773026,101660.0,101650.0,0.909981]
[1734121527377,0.28773026,101660.0,101650.0,0.409981]
[1734121527676,0.38066143,101660.0,101650.0,0.909981]
[1734121528170,0.38890664,101660.0,101650.0,0.909981]
[1734121529069,0.24679847,101660.0,101650.0,0.909981]
[1734121529262,0.20595326,101660.0,101650.0,1.00291217]
[1734121529470,0.08826568,101660.0,101650.0,1.00291217]
[1734121529668,0.11768758,101670.0,101660.0,0.049176]
[1734121529669,0.08826568,101670.0,101660.0,0.049176]
[1734121529874,0.08826568,101670.0,101660.0,1.671176]
[1734121530065,0.08826568,101670.0,101660.0,2.171176]
[1734121530265,0.44475343,101680.0,101670.0,0.049171]
[1734121530667,0.44475343,101680.0,101670.0,0.549171]
[1734121531062,0.44475343,101680.0,101670.0,0.049171]
[1734121531467,0.44475343,101680.0,101670.0,0.549171]
[1734121531468,0.45301171,101680.0,101670.0,0.549171]
[1734121531667,0.45301171,101680.0,101670.0,0.049171]
[1734121532177,0.45301171,101680.0,101670.0,0.549171]
[1734121532376,0.45301171,101680.0,101670.0,0.049171]
[1734121532578,0.45301171,101680.0,101670.0,0.549171]
[1734121532769,0.81381171,101680.0,101670.0,0.549171]
[1734121532962,0.76464271,101680.0,101660.0,2.122]
[1734121533164,0.151143,101670.0,101660.0,1.671175]
[1734121533367,0.14210217,101670.0,101660.0,0.471175]
[1734121533568,0.14210217,101670.0,101660.0,0.971175]
[1734121533769,0.14210217,101670.0,101660.0,0.471175]
[1734121534169,0.14210217,101670.0,101660.0,0.971175]
[1734121534378,0.14210217,101670.0,101660.0,0.471175]
[1734121534681,0.23086785,101670.0,101660.0,0.8608]
[1734121535171,0.32379902,101670.0,101660.0,0.3608]
[1734121535378,0.23086785,101670.0,101660.0,0.3608]
[1734121535578,0.13793668,101670.0,101660.0,0.3608]
[1734121535773,0.23086785,101670.0,101660.0,0.8608]
[1734121536179,0.32379902,101670.0,101660.0,0.3608]
[1734121536572,0.23086785,101670.0,101660.0,0.3608]
[1734121537280,0.049176,101660.0,101650.0,0.909978]
[1734121537469,0.17340717,101660.0,101650.0,0.8608]
[1734121537665,0.32327285,101660.0,101650.0,0.3608]
[1734121537881,0.32327285,101660.0,101650.0,0.8608]
[1734121538177,0.32327285,101660.0,101650.0,0.3608]
[1734121538576,0.32327285,101660.0,101650.0,0.8608]
[1734121538771,0.32327285,101660.0,101650.0,0.3608]
[1734121539272,0.32327285,101660.0,101650.0,0.5]
[1734121539273,0.80176043,101660.0,101650.0,0.5]
[1734121539473,0.049181,101650.0,101640.0,1.82152655]
[1734121539781,0.14211217,101650.0,101640.0,1.31315863]
[1734121539970,0.14211217,101650.0,101640.0,1.78125863]
[1734121540175,0.14211217,101650.0,101640.0,2.14205863]
[1734121541095,0.049181,101650.0,101640.0,2.14205863]
[1734121541780,0.17340917,101660.0,101650.0,0.049181]
[1734121541982,0.080478,101660.0,101650.0,0.409981]
[1734121542171,0.080478,101660.0,101650.0,2.109981]
[1734121542572,0.080478,101660.0,101650.0,1.609981]
[1734121542771,0.17340917,101660.0,101650.0,1.609981]
[1734121542972,0.17340917,101660.0,101650.0,2.109981]
[1734121544084,0.18168115,101660.0,101650.0,2.109981]
[1734121544474,0.08874998,101660.0,101650.0,2.109981]
[1734121544674,0.05744998,101660.0,101650.0,2.109981]
[1734121545480,0.23864683,101660.0,101650.0,2.109981]
[1734121546473,0.14571566,101660.0,101650.0,2.109981]
[1734121547279,0.23864683,101660.0,101650.0,2.109981]
[1734121548074,0.14571566,101660.0,101650.0,2.109981]
[1734121548473,0.14571566,101660.0,101650.0,0.909981]
[1734121548975,0.14571566,101660.0,101650.0,2.109981]
[1734121549882,0.14571566,101660.0,101650.0,0.909981]
[1734121551779,0.08826568,101660.0,101650.0,1.00291217]
[1734121551982,0.11986568,101670.0,101660.0,0.049176]
[1734121552288,0.11986568,101670.0,101660.0,0.909976]
[1734121552476,0.12036568,101670.0,101660.0,0.909976]
[1734121552676,0.12036568,101670.0,101660.0,0.441076]
[1734121552871,0.0321,101670.0,101660.0,0.941076]
[1734121553384,0.0321,101670.0,101660.0,0.441076]
[1734121553385,0.04020021,101670.0,101660.0,0.441076]
[1734121553888,0.04020021,101670.0,101660.0,0.941076]
[1734121554186,0.04020021,101670.0,101660.0,0.441076]
[1734121554684,0.03970021,101670.0,101660.0,0.941076]
[1734121554885,0.03970021,101670.0,101660.0,0.441076]
[1734121555188,0.12796589,101670.0,101660.0,0.941076]
[1734121555986,0.09636589,101670.0,101660.0,2.141076]
[1734121556381,0.09636589,101670.0,101660.0,2.172876]
[1734121561694,0.0005,101680.0,101660.0,2.26580717]
[1734121561986,0.0005,101680.0,101670.0,0.409971]
[1734121562393,0.0005,101680.0,101670.0,0.909971]
[1734121562596,0.53869317,101690.0,101680.0,0.049166]
[1734121562791,0.54707551,101690.0,101680.0,0.049166]
[1734121562999,0.81193188,101690.0,101680.0,0.549166]
[1734121563388,0.81193188,101690.0,101680.0,0.049166]
[1734121563786,0.81193188,101690.0,101680.0,0.549166]
[1734121564499,0.81243188,101690.0,101680.0,0.549166]
[1734121565094,0.66528945,101690.0,101680.0,0.549166]
[1734121565394,0.75353099,101690.0,101680.0,0.549166]
[1734121571194,0.81243188,101690.0,101680.0,0.549166]
[1734121572691,0.66528945,101690.0,101680.0,0.549166]
[1734121573188,0.63329468,101690.0,101680.0,0.549166]
[1734121573994,0.78043711,101690.0,101680.0,0.549166]
[1734121577097,1.02352317,101690.0,101680.0,0.5]
[1734121577503,0.049166,101680.0,101670.0,0.909969]
[1734121577699,0.049166,101680.0,101670.0,0.409969]
[1734121577700,0.31616373,101680.0,101670.0,0.409969]
[1734121578005,0.31616373,101680.0,101670.0,0.909969]
[1734121578404,0.31616373,101680.0,101670.0,0.409969]
[1734121578614,0.31616373,101680.0,101670.0,0.909969]
[1734121578805,0.28878813,101680.0,101670.0,0.3608]
[1734121579103,0.38078123,101680.0,101670.0,0.3608]
[1734121579697,0.38078123,101680.0,101670.0,0.8608]
[1734121579910,0.25890843,101680.0,101670.0,0.3608]
[1734121580205,0.38078123,101680.0,101670.0,0.8608]
[1734121581405,0.55735214,101680.0,101670.0,0.8608]
[1734121583504,0.43547934,101680.0,101670.0,0.909971]
[1734121583703,0.49641574,101680.0,101670.0,0.909971]
[1734121583908,0.55735214,101680.0,101670.0,0.909971]
[1734121585005,0.38078123,101680.0,101670.0,0.909971]
[1734121585208,0.55735214,101680.0,101670.0,0.909971]
[1734121586800,0.38078123,101680.0,101670.0,0.909971]
[1734121587112,0.55735214,101680.0,101670.0,0.909971]
[1734121589216,0.55735214,101680.0,101670.0,0.8608]
[1734121592607,0.91815214,101680.0,101670.0,0.5]
[1734121592813,0.55735214,101680.0,101670.0,0.8608]
[1734121593009,0.55735214,101680.0,101670.0,0.3608]
[1734121593207,0.049171,101670.0,101660.0,0.5]
[1734121593410,0.049171,101670.0,101650.0,1.15341293]
[1734121593411,0.049176,101660.0,101650.0,1.15341293]
[1734121593636,0.37728154,101660.0,101650.0,1.15341293]
[1734121593914,0.37728154,101660.0,101650.0,0.8608]
[1734121594511,0.37728154,101660.0,101650.0,0.8613]
[1734121595312,0.34831667,101660.0,101650.0,0.8613]
[1734121595904,0.34831667,101660.0,101650.0,0.5005]
[1734121595905,0.70911667,101660.0,101650.0,0.5005]
[1734121596106,0.76787364,101660.0,101650.0,0.0005]
[1734121596307,0.89239727,101660.0,101650.0,0.0005]
[1734121596509,0.74525484,101660.0,101650.0,0.0005]
[1734121597113,0.89241354,101660.0,101650.0,0.0005]
[1734121599314,0.90089325,101660.0,101650.0,0.0005]
[1734121600112,0.72432234,101660.0,101650.0,0.0005]
[1734121601132,0.29645246,101660.0,101650.0,0.3613]
[1734121601420,0.049176,101660.0,101650.0,0.943381]
[1734121601616,0.049176,101660.0,101650.0,2.143381]
[1734121601815,0.049176,101660.0,101650.0,1.643381]
[1734121602026,0.049176,101660.0,101650.0,2.143381]
[1734121602319,0.14208393,101660.0,101650.0,2.143381]
[1734121604618,0.14208393,101660.0,101650.0,0.943381]
[1734121605328,0.14208393,101660.0,101650.0,2.143381]
[1734121606719,0.23027115,101660.0,101650.0,2.143381]
[1734121610223,0.2463596,101670.0,101650.0,2.23628893]
[1734121610420,0.2955326,101670.0,101660.0,0.409976]
[1734121610621,0.17792307,101670.0,101660.0,0.409976]
[1734121610926,0.17792307,101670.0,101660.0,0.909976]
[1734121611135,0.17792307,101670.0,101660.0,0.409976]
[1734121611521,0.17792307,101670.0,101660.0,0.909976]
[1734121611925,0.17792307,101670.0,101660.0,0.409976]
[1734121612126,0.17792307,101670.0,101660.0,0.909976]
[1734121612631,0.270831,101670.0,101660.0,0.409976]
[1734121613028,0.270831,101670.0,101660.0,0.909976]
[1734121613236,0.270831,101670.0,101660.0,0.409976]
[1734121613529,0.270831,101670.0,101660.0,0.909976]
[1734121613934,0.270831,101670.0,101660.0,0.409976]
[1734121614325,0.270831,101670.0,101660.0,0.909976]
[1734121614633,0.270831,101670.0,101660.0,0.409976]
[1734121614834,0.270831,101670.0,101660.0,0.909976]
[1734121627147,0.38844053,101670.0,101660.0,0.909976]
[1734121627848,0.18264378,101670.0,101660.0,0.909976]
[1734121628047,0.27555171,101670.0,101660.0,0.8608]
[1734121628248,0.049176,101660.0,101650.0,0.910478]
[1734121628450,0.20588393,101660.0,101650.0,0.910478]
[1734121628743,0.20588393,101660.0,101650.0,2.110478]
[1734121629145,0.20588393,101660.0,101650.0,0.910478]
[1734121629845,0.20588393,101660.0,101650.0,2.110478]
[1734121630448,0.32372243,101660.0,101650.0,2.110478]
[1734121630952,0.31919338,101660.0,101650.0,2.110478]
[1734121631247,0.47102056,101660.0,101650.0,2.110478]
[1734121633151,0.20623876,101660.0,101650.0,2.471278]
[1734121633347,0.20623876,101660.0,101650.0,2.504578]
[1734121633852,0.08840026,101660.0,101650.0,2.504578]
[1734121635755,0.30048128,101670.0,101660.0,0.049176]
[1734121635756,0.38888154,101670.0,101660.0,0.049176]
[1734121635942,0.38888154,101670.0,101660.0,0.409976]
[1734121636150,0.38888154,101670.0,101660.0,0.909976]
[1734121636346,0.30048128,101670.0,101660.0,0.909976]
[1734121636550,0.30048128,101670.0,101660.0,0.409976]
[1734121636752,0.44777941,101670.0,101660.0,0.409976]
[1734121636948,0.44777941,101670.0,101660.0,0.909976]
[1734121637349,0.44777941,101670.0,101660.0,0.409976]
[1734121637756,0.44777941,101670.0,101660.0,0.909976]
[1734121638262,0.35487148,101670.0,101660.0,0.909976]
[1734121639150,0.41581396,101670.0,101660.0,0.909976]
[1734121644866,0.36664196,101670.0,101660.0,0.909976]
[1734121646166,0.35891694,101670.0,101660.0,0.909976]
[1734121646352,0.29797446,101670.0,101660.0,0.909976]
[1734121651471,0.15067633,101670.0,101660.0,0.909976]
[1734121651669,0.00856285,101670.0,101660.0,0.909976]
[1734121651859,0.0005,101680.0,101670.0,0.049171]
[1734121652064,0.0005,101680.0,101670.0,0.56205596]
[1734121652261,0.0005,101680.0,101670.0,2.55183157]
[1734121652766,0.18164883,101690.0,101680.0,0.049166]
[1734121652957,0.18164883,101690.0,101680.0,0.409966]
[1734121653157,0.18164883,101690.0,101680.0,0.909966]
[1734121653158,0.12070635,101690.0,101680.0,0.909966]
[1734121653360,0.12070635,101690.0,101680.0,0.409966]
[1734121653560,0.16986735,101690.0,101680.0,0.409966]
[1734121653860,0.16986735,101690.0,101680.0,0.909966]
[1734121653861,0.26269959,101690.0,101680.0,0.909966]
[1734121654058,0.26269959,101690.0,101680.0,0.409966]
[1734121654260,0.17429324,101690.0,101680.0,0.909966]
[1734121654666,0.17479324,101690.0,101680.0,0.909966]
[1734121655263,0.26306456,101690.0,101680.0,0.909966]
[1734121657370,0.17023232,101690.0,101680.0,0.909966]
[1734121663472,0.081961,101690.0,101680.0,0.909966]
[1734121665574,0.17479324,101690.0,101680.0,0.909966]
[1734121666074,0.081961,101690.0,101680.0,0.909966]
[1734121666385,0.0328,101690.0,101680.0,0.909966]
[1734121673183,0.09372202,101690.0,101680.0,0.909966]
[1734121674785,0.09372202,101690.0,101680.0,0.97088802]
[1734121675885,0.09372202,101690.0,101680.0,0.909966]
[1734121676784,0.09322202,101690.0,101680.0,0.909966]
[1734121678487,0.18138354,101690.0,101680.0,0.909966]
[1734121678886,0.09322202,101690.0,101680.0,0.909966]
[1734121679189,0.14238302,101690.0,101680.0,0.909966]
[1734121679388,0.29146656,101690.0,101680.0,0.909966]
[1734121679582,0.23068991,101690.0,101680.0,0.909966]
[1734121679887,0.40686757,101690.0,101680.0,0.909966]
[1734121680281,0.46778959,101690.0,101680.0,0.909966]
[1734121680583,0.3502409,101690.0,101680.0,0.909966]
[1734121681379,0.52656394,101690.0,101680.0,0.909966]
[1734121683475,0.3502409,101690.0,101680.0,0.909966]
[1734121684475,0.28931888,101690.0,101680.0,0.909966]
[1734121686378,0.3502409,101690.0,101680.0,0.909966]
[1734121690295,0.7110409,101690.0,101680.0,0.409966]
[1734121690591,0.7110409,101690.0,101670.0,0.90997]
[1734121690794,0.58919686,101690.0,101680.0,0.049166]
[1734121691290,0.58919686,101690.0,101680.0,0.549166]
[1734121691683,0.58919686,101690.0,101680.0,0.049166]
[1734121692189,0.58919686,101690.0,101680.0,0.549166]
[1734121692380,0.58919686,101690.0,101680.0,0.049166]
[1734121692692,0.58919686,101690.0,101680.0,0.549166]
[1734121693479,0.7110409,101690.0,101680.0,0.549166]
[1734121695385,0.65011888,101690.0,101680.0,0.549166]
[1734121698784,0.16697793,101690.0,101680.0,0.549166]
[1734121698994,0.22789995,101690.0,101680.0,0.549166]
[1734121699599,0.31626127,101690.0,101680.0,0.549166]
[1734121699797,0.79655783,101690.0,101680.0,0.549166]
[1734121700096,0.049166,101680.0,101670.0,0.549168]
[1734121700282,0.76949931,101680.0,101670.0,0.549168]
[1734121700483,0.43939931,101680.0,101670.0,0.049168]
[1734121700684,0.80019931,101680.0,101670.0,0.549668]
[1734121701091,0.43939931,101680.0,101670.0,0.049668]
[1734121701295,0.80019931,101680.0,101670.0,0.549668]
[1734121701689,0.80019931,101680.0,101670.0,0.549168]
[1734121702695,0.80019931,101680.0,101670.0,0.549668]
[1734121703283,1.1288134,101680.0,101670.0,0.0005]
[1734121703482,0.29110186,101680.0,101670.0,0.549671]
[1734121703784,0.34775461,101680.0,101670.0,0.409971]
[1734121703984,0.08835457,101680.0,101670.0,0.47089302]
[1734121704190,0.08835457,101680.0,101670.0,0.97089302]
[1734121704191,0.14927659,101680.0,101670.0,0.97089302]
[1734121704393,0.14927659,101680.0,101670.0,0.47089302]
[1734121704696,0.14927659,101680.0,101670.0,0.910471]
[1734121704901,0.14927659,101680.0,101670.0,1.26028484]
[1734121705083,0.06092202,101680.0,101670.0,0.76028484]
[1734121705285,0.06092202,101680.0,101670.0,0.82120686]
[1734121705489,0.14927659,101680.0,101670.0,1.32120686]
[1734121705685,0.14927659,101680.0,101670.0,1.25978484]
[1734121705896,0.14927659,101680.0,101670.0,0.89898484]
[1734121706093,0.14927659,101680.0,101670.0,1.749171]
[1734121706299,0.26708861,101680.0,101670.0,1.749171]
[1734121706792,0.26708861,101680.0,101670.0,1.749671]
[1734121707891,0.26708861,101680.0,101670.0,1.749171]
[1734121708695,0.26708861,101680.0,101670.0,1.749671]
[1734121709695,0.26708861,101680.0,101670.0,1.749171]
[1734121709896,0.32801063,101680.0,101670.0,1.749171]
[1734121710293,0.28882206,101680.0,101670.0,1.749171]
[1734121710696,0.28882206,101680.0,101670.0,1.749671]
[1734121711399,0.49655792,101690.0,101670.0,1.749671]
[1734121711598,0.17386529,101680.0,101670.0,1.749671]
[1734121711785,0.14935059,101680.0,101670.0,1.749171]
[1734121712696,0.14935059,101680.0,101670.0,1.749671]
[1734121712893,0.08842857,101680.0,101670.0,2.17139302]
[1734121713098,0.08842857,101680.0,101670.0,2.52120686]
[1734121713399,0.08842857,101680.0,101670.0,2.54870686]
[1734121713800,0.08842857,101680.0,101670.0,2.55714497]
[1734121714794,0.08842857,101680.0,101670.0,2.55764497]
[1734121716499,0.14935059,101680.0,101670.0,2.55764497]
[1734121719302,0.06092202,101680.0,101670.0,2.55764497]
[1734121720796,0.14935059,101690.0,101670.0,2.55764497]
[1734121720994,0.02441873,101680.0,101670.0,2.55764497]
[1734121721203,0.14935059,101690.0,101680.0,0.049166]
[1734121721391,0.08842857,101690.0,101680.0,0.53181004]
[1734121721592,0.21888047,101700.0,101690.0,0.049161]
[1734121721903,0.21888047,101700.0,101690.0,0.97088302]
[1734121722097,0.21888047,101700.0,101690.0,2.17088302]
[1734121722296,0.1,101700.0,101690.0,2.52069686]
[1734121722498,0.36227542,101710.0,101690.0,2.52069686]
[1734121722702,0.42319744,101710.0,101700.0,0.049156]
[1734121723100,0.42319744,101710.0,101700.0,0.549156]
[1734121723403,0.42319744,101710.0,101700.0,0.049156]
[1734121723795,0.42319744,101710.0,101700.0,0.549156]
[1734121724199,0.42319744,101710.0,101700.0,0.049156]
[1734121724398,0.42319744,101710.0,101700.0,0.549156]
[1734121724597,0.42319744,101710.0,101700.0,0.049156]
[1734121724999,0.42319744,101710.0,101700.0,0.549156]
[1734121725200,0.42319744,101710.0,101700.0,0.049156]
[1734121725607,0.42319744,101710.0,101700.0,0.549156]
[1734121726111,0.42319744,101710.0,101700.0,0.049156]
[1734121726301,0.42319744,101710.0,101700.0,0.549156]
[1734121726608,0.42319744,101710.0,101700.0,0.049156]
[1734121726906,0.42319744,101710.0,101700.0,0.549156]
[1734121727200,0.42319744,101710.0,101700.0,0.049156]
[1734121727604,0.42319744,101710.0,101700.0,0.549156]
[1734121727907,0.42319744,101710.0,101700.0,0.049156]
[1734121728102,0.42319744,101710.0,101700.0,0.549156]
[1734121728307,0.47234944,101710.0,101700.0,0.549156]
[1734121729305,0.53179604,101710.0,101700.0,0.549156]
[1734121729607,0.47087402,101710.0,101700.0,0.549156]
[1734121729813,0.53229604,101710.0,101700.0,0.549156]
[1734121730406,0.47137402,101710.0,101700.0,0.549156]
[1734121730606,0.53229604,101710.0,101700.0,0.549156]
[1734121731205,0.47137402,101710.0,101700.0,0.549156]
[1734121733304,0.53229604,101710.0,101700.0,0.549156]
[1734121733509,0.47137402,101710.0,101700.0,0.549156]
[1734121734016,0.53229604,101710.0,101700.0,0.549156]
[1734121735814,0.47137402,101710.0,101700.0,0.549156]
[1734121737308,0.410452,101710.0,101700.0,0.549156]
[1734121737505,0.47137402,101710.0,101700.0,0.549156]
[1734121740714,0.0005,101710.0,101700.0,0.61007802]
[1734121741111,0.0005,101710.0,101700.0,1.84317802]
[1734121741112,0.06142202,101710.0,101700.0,1.84317802]
[1734121741316,0.06142202,101710.0,101700.0,1.87617802]
[1734121742704,0.06142202,101710.0,101700.0,1.815256]
[1734121742912,0.06142202,101710.0,101700.0,0.615256]
[1734121743409,0.06142202,101710.0,101700.0,1.87617802]
[1734121744016,0.06142202,101710.0,101700.0,0.67617802]
[1734121746810,0.06142202,101710.0,101700.0,0.5]
[1734121746811,0.53229504,101710.0,101700.0,0.5]
[1734121747018,0.53229504,101710.0,101690.0,0.00969075]